bitfinex/quotes_ETHUSD_20251006
["timestamp","ask_amount","ask_price","bid_price","bid_amount"]
[1759721328810,35.23454031,4535.3,4535.2,20.79513881]
[1759721329012,36.46454031,4535.3,4535.2,50.79513881]
[1759721330622,37.69454031,4535.3,4535.2,50.79513881]
[1759721331820,37.69454031,4535.3,4535.2,20.79513881]
[1759721332120,38.92454031,4535.3,4535.2,50.79513881]
[1759721332817,38.92454031,4535.3,4535.2,20.79513881]
[1759721333018,38.92454031,4535.3,4535.2,50.79513881]
[1759721333586,40.15454031,4535.3,4535.2,50.79513881]
[1759721335122,41.38454031,4535.3,4535.2,50.79513881]
[1759721336494,42.61454031,4535.3,4535.2,50.79513881]
[1759721338325,43.84454031,4535.3,4535.2,50.79513881]
[1759721338934,43.84454031,4535.3,4535.2,20.79513881]
[1759721339138,43.84454031,4535.3,4535.2,50.79513881]
[1759721339735,45.07454031,4535.3,4535.2,50.79513881]
[1759721341034,46.30454031,4535.3,4535.2,50.79513881]
[1759721341434,46.76464031,4535.3,4535.2,33.17153881]
[1759721341601,46.76464031,4535.3,4535.2,11.33788481]
[1759721341602,48.93313212,4535.3,4535.2,11.33788481]
[1759721341805,48.93313212,4535.3,4535.2,13.82688481]
[1759721342002,48.93313212,4535.3,4535.2,24.50501881]
[1759721342439,50.16313212,4535.3,4535.2,20.23201781]
[1759721342753,50.16313212,4535.3,4535.2,36.559879]
[1759721343162,50.16313212,4535.3,4535.2,38.3048]
[1759721343451,47.99464031,4535.3,4535.2,37.601625]
[1759721343652,50.19956611,4535.3,4535.2,30.565948]
[1759721343831,49.22464031,4535.3,4535.2,27.716466]
[1759721344032,49.22464031,4535.3,4535.2,31.517843]
[1759721345162,50.45464031,4535.3,4535.2,41.040703]
[1759721346115,50.45464031,4535.3,4535.2,19.4994]
[1759721346319,50.45464031,4535.3,4535.2,37.243261]
[1759721346558,51.68464031,4535.3,4535.2,36.243261]
[1759721347066,51.68464031,4535.3,4535.2,31.677977]
[1759721347270,51.68464031,4535.3,4535.2,36.15009]
[1759721347958,52.91464031,4535.3,4535.2,27.726093]
[1759721348339,52.91464031,4535.3,4535.2,32.407083]
[1759721348861,52.91464031,4535.3,4535.2,31.345083]
[1759721349230,52.91464031,4535.3,4535.2,32.451083]
[1759721349426,58.36327533,4535.3,4535.2,0.1104]
[1759721349750,2.20497442,4535.2,4535.1,0.001]
[1759721349928,2.20497442,4535.2,4535.1,2.491]
[1759721350255,2.64087442,4535.2,4535.1,2.491]
[1759721350448,4.80936623,4535.2,4535.1,2.491]
[1759721350650,6.03936623,4535.2,4535.1,0.001]
[1759721350852,6.03936623,4535.2,4535.1,2.491]
[1759721352071,7.26936623,4535.2,4535.1,2.491]
[1759721353478,8.49936623,4535.2,4535.1,2.491]
[1759721354844,2.20516891,4534.8,4534.7,0.00584364]
[1759721355032,2.31556891,4534.8,4534.7,2.49584364]
[1759721355228,2.75146891,4534.8,4534.7,2.49584364]
[1759721355745,2.75146891,4534.8,4534.7,10.10040264]
[1759721355946,2.75146891,4534.8,4534.7,8.12940264]
[1759721356506,3.98146891,4534.8,4534.7,8.12940264]
[1759721356977,3.43516891,4534.8,4534.7,11.95049764]
[1759721357887,4.66516891,4534.8,4534.7,16.32100164]
[1759721358063,4.66516891,4534.8,4534.7,13.49030164]
[1759721358265,4.66516891,4534.8,4534.7,13.24494764]
[1759721358465,4.66516891,4534.8,4534.7,12.95407264]
[1759721358678,4.66516891,4534.8,4534.7,9.64997264]
[1759721358987,5.10106891,4534.8,4534.7,24.00543764]
[1759721359193,6.33106891,4534.8,4534.7,24.00543764]
[1759721359762,6.33106891,4534.8,4534.7,24.00807164]
[1759721360903,6.33106891,4534.8,4534.7,19.39584364]
[1759721361063,7.56106891,4534.8,4534.7,23.98906864]
[1759721362096,7.56106891,4534.8,4534.7,23.86763864]
[1759721362879,8.79106891,4534.8,4534.7,25.37981264]
[1759721363283,8.79106891,4534.8,4534.7,23.97981264]
[1759721363670,8.79106891,4534.8,4534.7,22.87135664]
[1759721364020,8.79106891,4534.8,4534.7,22.70849364]
[1759721364205,10.02106891,4534.8,4534.7,22.70849364]
[1759721364868,10.02106891,4534.8,4534.7,22.81422564]
[1759721366012,11.25106891,4534.8,4534.7,22.70849364]
[1759721366220,10.81516891,4534.8,4534.7,8.20849364]
[1759721366417,8.61,4534.8,4534.7,8.20849364]
[1759721366580,8.61,4534.8,4534.7,8.76029364]
[1759721366914,8.61,4534.8,4534.7,23.92171231]
[1759721367116,8.61,4534.8,4534.7,50.60906231]
[1759721367410,9.84,4534.8,4534.7,50.60906231]
[1759721368648,11.07,4534.8,4534.7,50.60906231]
[1759721370146,12.3,4534.8,4534.7,50.60906231]
[1759721371124,12.3,4534.8,4534.7,50.16997531]
[1759721371559,13.53,4534.8,4534.7,50.16997531]
[1759721372041,13.53,4534.8,4534.7,50.60906231]
[1759721372954,14.76,4534.8,4534.7,50.60906231]
[1759721374559,15.99,4534.8,4534.7,50.60906231]
[1759721375863,17.22,4534.8,4534.7,50.60906231]
[1759721377147,18.45,4534.8,4534.7,50.60906231]
[1759721378552,19.68,4534.8,4534.7,50.60906231]
[1759721379192,19.68,4534.8,4534.7,20.60906231]
[1759721379396,19.68,4534.8,4534.7,50.60906231]
[1759721379991,20.91,4534.8,4534.7,50.60906231]
[1759721381286,22.14,4534.8,4534.7,50.60906231]
[1759721382700,23.37,4534.8,4534.7,50.60906231]
[1759721384101,24.6,4534.8,4534.7,50.60906231]
[1759721384395,24.6,4534.8,4534.7,50.16766231]
[1759721384596,24.6,4534.8,4534.7,43.08673431]
[1759721384796,24.6,4534.8,4534.7,45.57673431]
[1759721385383,24.6,4534.8,4534.7,47.59308031]
[1759721385712,25.83,4534.8,4534.7,47.59308031]
[1759721386501,25.83,4534.8,4534.7,50.16766231]
[1759721386874,27.06,4534.8,4534.7,50.16766231]
[1759721387625,27.06,4534.8,4534.7,48.02208631]
[1759721388320,27.06,4534.8,4534.7,50.16766231]
[1759721388506,28.29,4534.8,4534.7,50.16766231]
[1759721389323,28.29,4534.8,4534.7,20.16766231]
[1759721389613,28.29,4534.8,4534.7,50.16766231]
[1759721389913,29.9882,4534.8,4534.7,37.46230331]
[1759721390521,29.9882,4534.8,4534.7,39.29863831]
[1759721391103,29.52,4534.8,4534.7,39.29863831]
[1759721391299,30.75,4534.8,4534.7,39.29863831]
[1759721391591,30.75,4534.8,4534.7,46.44578631]
[1759721391791,30.75,4534.8,4534.7,45.48069931]
[1759721392616,30.75,4534.8,4534.7,47.32051131]
[1759721392817,31.98,4534.8,4534.7,47.32051131]
[1759721393613,31.98,4534.8,4534.7,47.32050031]
[1759721393814,31.98,4534.8,4534.7,45.44522631]
[1759721394137,33.21,4534.8,4534.7,45.44522631]
[1759721394337,33.21,4534.8,4534.7,45.00908331]
[1759721394711,33.21,4534.8,4534.7,44.94299531]
[1759721395236,33.21,4534.8,4534.7,42.45299531]
[1759721395445,33.21,4534.8,4534.7,42.01920131]
[1759721395607,34.44,4534.8,4534.7,44.23278031]
[1759721396740,34.44,4534.8,4534.7,45.76110331]
[1759721397037,35.67,4534.8,4534.7,44.67910631]
[1759721397238,35.67,4534.8,4534.7,41.19532231]
[1759721397635,35.67,4534.8,4534.7,20.16766231]
[1759721397940,35.67,4534.8,4534.7,41.19532231]
[1759721398638,36.9,4534.8,4534.7,41.19532231]
[1759721398842,36.9,4534.8,4534.7,42.37349331]
[1759721399709,36.9,4534.8,4534.7,42.70556231]
[1759721399911,36.9,4534.8,4534.7,41.59956231]
[1759721399912,38.13,4534.8,4534.7,41.59956231]
[1759721400240,38.13,4534.8,4534.7,39.10956231]
[1759721400408,38.13,4534.8,4534.7,41.59956231]
[1759721400917,38.13,4534.8,4534.7,41.47520731]
[1759721401512,39.36,4534.8,4534.7,41.47520731]
[1759721402056,39.36,4534.8,4534.7,43.51921331]
[1759721402912,40.59,4534.8,4534.7,43.83071331]
[1759721403242,40.59,4534.8,4534.7,42.96055331]
[1759721403948,40.59,4534.8,4534.7,49.09460831]
[1759721404126,40.59,4534.8,4534.7,45.35285631]
[1759721404313,41.82,4534.8,4534.7,43.35201131]
[1759721405048,41.82,4534.8,4534.7,50.36337031]
[1759721405246,41.82,4534.8,4534.7,49.95402231]
[1759721405446,41.82,4534.8,4534.7,46.81703931]
[1759721405751,43.05,4534.8,4534.7,45.79609131]
[1759721405950,43.05,4534.8,4534.7,41.84028631]
[1759721406819,43.05,4534.8,4534.7,50.16766231]
[1759721407018,44.28,4534.8,4534.7,49.38925831]
[1759721407224,44.28,4534.8,4534.7,49.82015831]
[1759721407853,44.28,4534.8,4534.7,50.16766231]
[1759721408034,44.28,4534.8,4534.7,50.59856231]
[1759721408520,45.51,4534.8,4534.7,50.59856231]
[1759721409261,45.51,4534.8,4534.7,50.16766231]
[1759721409428,45.51,4534.8,4534.7,50.59856231]
[1759721409625,45.51,4534.8,4534.7,30.40573331]
[1759721409626,47.71516891,4534.8,4534.7,30.40573331]
[1759721409823,47.71516891,4534.8,4534.7,2.51624364]
[1759721409824,48.82112067,4534.8,4534.7,2.51624364]
[1759721410064,50.05112067,4534.8,4534.7,5.28130464]
[1759721410365,50.05112067,4534.8,4534.7,9.25214064]
[1759721410825,50.05112067,4534.8,4534.7,6.85214064]
[1759721411032,49.61422067,4534.8,4534.7,10.28923064]
[1759721411229,51.28112067,4534.8,4534.7,10.28923064]
[1759721412059,47.97,4534.8,4534.7,14.02090064]
[1759721412225,47.97,4534.8,4534.7,14.56220064]
[1759721412676,49.2,4534.8,4534.7,14.56220064]
[1759721412966,49.2,4534.8,4534.7,35.43714364]
[1759721413855,49.2,4534.8,4534.7,49.93714364]
[1759721414052,50.43,4534.8,4534.7,49.93714364]
[1759721415667,51.66,4534.8,4534.7,49.93714364]
[1759721417083,52.89,4534.8,4534.7,19.93714364]
[1759721417380,52.89,4534.8,4534.7,49.93714364]
[1759721417781,52.89,4534.8,4534.7,49.50624364]
[1759721417960,52.89,4534.8,4534.7,49.93714364]
[1759721418560,54.12,4534.8,4534.7,49.93714364]
[1759721419970,55.35,4534.8,4534.7,49.93714364]
[1759721420173,55.35,4534.8,4534.7,50.59848941]
[1759721421385,56.58,4534.8,4534.7,50.59848941]
[1759721421584,56.58,4534.8,4534.7,53.43408941]
[1759721422694,57.81,4534.8,4534.7,53.43408941]
[1759721424153,59.04,4534.8,4534.7,53.43408941]
[1759721425666,60.27,4534.8,4534.7,53.43408941]
[1759721426868,61.5,4534.8,4534.7,50.51318941]
[1759721427102,61.9369,4534.8,4534.7,50.51318941]
[1759721427305,61.9369,4534.8,4534.7,53.00318941]
[1759721427596,61.5,4534.8,4534.7,53.00318941]
[1759721428092,61.5,4534.8,4534.7,49.87958941]
[1759721428298,61.9369,4534.8,4534.7,32.91446541]
[1759721428495,67.54056072,4534.8,4534.7,29.83101164]
[1759721428791,63.1669,4534.8,4534.7,32.23101164]
[1759721428992,62.73,4534.8,4534.7,32.23101164]
[1759721429199,63.1669,4534.8,4534.7,32.23101164]
[1759721429404,63.1669,4534.8,4534.7,49.25766164]
[1759721429782,64.3969,4534.8,4534.7,49.25766164]
[1759721429975,63.96,4534.8,4534.7,49.25766164]
[1759721430401,63.96,4534.8,4534.7,49.50624364]
[1759721431010,63.96,4534.8,4534.7,50.57074364]
[1759721431173,65.19,4534.8,4534.7,50.57074364]
[1759721432313,65.19,4534.8,4534.7,20.57074364]
[1759721432605,66.42,4534.8,4534.7,50.57074364]
[1759721433281,66.42,4534.8,4534.7,51.23205879]
[1759721433809,67.65,4534.8,4534.7,51.23205879]
[1759721435812,68.88,4534.8,4534.7,51.23205879]
[1759721436519,68.88,4534.8,4534.7,50.80115879]
[1759721436725,68.88,4534.8,4534.7,51.25405879]
[1759721437128,70.11,4534.8,4534.7,50.80115879]
[1759721437328,70.11,4534.8,4534.7,51.25405879]
[1759721438615,71.34,4534.8,4534.7,51.25405879]
[1759721439012,71.34,4534.8,4534.7,50.80115879]
[1759721440212,72.57,4534.8,4534.7,50.80115879]
[1759721441640,73.8,4534.8,4534.7,50.80115879]
[1759721442135,74.2357,4534.8,4534.7,24.10671579]
[1759721442331,75.70748476,4534.8,4534.7,26.59671579]
[1759721442700,74.2357,4534.8,4534.7,33.81785479]
[1759721442900,75.4657,4534.8,4534.7,33.81785479]
[1759721443621,75.4657,4534.8,4534.7,35.66755879]
[1759721444310,76.6957,4534.8,4534.7,35.66755879]
[1759721444629,76.6957,4534.8,4534.7,5.66755879]
[1759721444931,76.6957,4534.8,4534.7,35.66755879]
[1759721446132,77.9257,4534.8,4534.7,33.48560979]
[1759721446338,77.9257,4534.8,4534.7,31.72054279]
[1759721446537,77.9257,4534.8,4534.7,46.22054279]
[1759721446733,77.9257,4534.8,4534.7,17.67755879]
[1759721446941,77.9257,4534.8,4534.7,50.16755879]
[1759721447430,79.1557,4534.8,4534.7,50.16755879]
[1759721447630,79.1557,4534.8,4534.7,47.67755879]
[1759721447942,79.1557,4534.8,4534.7,50.16755879]
[1759721448339,79.1557,4534.8,4534.7,47.67755879]
[1759721448641,79.1557,4534.8,4534.7,50.16755879]
[1759721448844,80.3857,4534.8,4534.7,50.16755879]
[1759721449807,80.3857,4534.8,4534.7,20.16755879]
[1759721450110,80.3857,4534.8,4534.7,50.16755879]
[1759721450308,81.6157,4534.8,4534.7,50.16755879]
[1759721451818,82.8457,4534.8,4534.7,50.16755879]
[1759721453046,82.41,4534.8,4534.7,50.16755879]
[1759721453341,83.64,4534.8,4534.7,50.16755879]
[1759721454249,84.0757,4534.8,4534.7,50.16755879]
[1759721454646,85.3057,4534.8,4534.7,50.16755879]
[1759721455957,86.5357,4534.8,4534.7,50.16755879]
[1759721457046,86.5357,4534.8,4534.7,20.16755879]
[1759721457342,87.7657,4534.8,4534.7,50.16755879]
[1759721457841,87.7657,4534.8,4534.7,36.17886479]
[1759721458046,87.7657,4534.8,4534.7,40.87813079]
[1759721458247,87.7657,4534.8,4534.7,43.36813079]
[1759721458468,87.7657,4534.8,4534.7,28.86813079]
[1759721458758,88.9957,4534.8,4534.7,28.86813079]
[1759721458960,89.83227188,4534.8,4534.7,20.48300579]
[1759721459262,89.83227188,4534.8,4534.7,23.88875064]
[1759721459440,89.83227188,4534.8,4534.7,21.48875064]
[1759721459624,89.83227188,4534.8,4534.7,20.57724564]
[1759721460126,91.06227188,4534.8,4534.7,32.60624364]
[1759721460456,89.79,4534.8,4534.7,35.00624364]
[1759721460963,89.79,4534.8,4534.7,35.66767689]
[1759721461260,89.79,4534.8,4534.7,34.77046889]
[1759721461568,91.4557,4534.8,4534.7,31.84855089]
[1759721461801,91.4557,4534.8,4534.7,30.87100389]
[1759721462160,93.66086891,4534.8,4534.7,29.13720389]
[1759721462356,95.78854421,4534.8,4534.7,26.86790089]
[1759721462563,93.5833753,4534.8,4534.7,24.37790089]
[1759721462795,92.6857,4534.8,4534.7,26.86790089]
[1759721463000,92.25,4534.8,4534.7,26.86790089]
[1759721463158,92.25,4534.8,4534.7,33.24172289]
[1759721463353,92.25,4534.8,4534.7,47.74172289]
[1759721463586,92.25,4534.8,4534.7,45.62208889]
[1759721463769,92.25,4534.8,4534.7,45.31713789]
[1759721464095,94.45516891,4534.8,4534.7,45.31713789]
[1759721464291,93.48,4534.8,4534.7,45.28520689]
[1759721464497,95.68516891,4534.8,4534.7,45.28520689]
[1759721464701,96.15756891,4534.8,4534.7,42.24755389]
[1759721464862,98.32606072,4534.8,4534.7,39.47152489]
[1759721465063,93.9524,4534.8,4534.7,39.47152489]
[1759721465285,93.9524,4534.8,4534.7,41.63350389]
[1759721465593,93.9524,4534.8,4534.7,40.20262789]
[1759721465791,94.71,4534.8,4534.7,40.20262789]
[1759721466396,94.71,4534.8,4534.7,47.10976589]
[1759721466894,96.91516891,4534.8,4534.7,40.94358289]
[1759721467095,98.61756891,4534.8,4534.7,40.94358289]
[1759721467389,98.61756891,4534.8,4534.7,42.34285089]
[1759721467594,95.94,4534.8,4534.7,41.68141764]
[1759721468396,95.94,4534.8,4534.7,19.50624364]
[1759721468694,97.17,4534.8,4534.7,47.50207364]
[1759721468909,99.37516891,4534.8,4534.7,47.50207364]
[1759721469062,99.37516891,4534.8,4534.7,46.16393964]
[1759721469272,99.37516891,4534.8,4534.7,44.77133264]
[1759721469571,99.37516891,4534.8,4534.7,44.81322464]
[1759721469910,99.37516891,4534.8,4534.7,43.26222664]
[1759721470089,100.60516891,4534.8,4534.7,43.26222664]
[1759721470611,100.60516891,4534.8,4534.7,45.89080864]
[1759721471216,98.4,4534.8,4534.7,45.89080864]
[1759721471377,99.63,4534.8,4534.7,45.89080864]
[1759721471577,99.63,4534.8,4534.7,49.50624364]
[1759721471881,99.63,4534.8,4534.7,45.82289889]
[1759721472280,102.30756891,4534.8,4534.7,41.54106489]
[1759721472484,102.30756891,4534.8,4534.7,43.97054189]
[1759721472691,102.30756891,4534.8,4534.7,42.94525089]
[1759721472890,103.53756891,4534.8,4534.7,42.94525089]
[1759721473505,103.53756891,4534.8,4534.7,20.16767689]
[1759721473818,100.86,4534.8,4534.7,46.82775989]
[1759721474018,100.86,4534.8,4534.7,50.22263322]
[1759721474312,102.09,4534.8,4534.7,50.22263322]
[1759721474818,102.09,4534.8,4534.7,53.56255022]
[1759721475127,102.09,4534.8,4534.7,53.78295022]
[1759721475480,103.32,4534.8,4534.7,53.78295022]
[1759721477083,104.55,4534.8,4534.7,53.78295022]
[1759721478516,105.78,4534.8,4534.7,53.78295022]
[1759721479180,105.78,4534.8,4534.7,53.56255022]
[1759721479605,105.78,4534.8,4534.7,54.88655022]
[1759721479794,107.01,4534.8,4534.7,54.88655022]
[1759721479989,75.231171,4534.8,4534.7,54.88655022]
[1759721480608,75.231171,4534.8,4534.7,24.88655022]
[1759721480818,75.231171,4534.8,4534.7,54.88655022]
[1759721481311,76.461171,4534.8,4534.7,54.88655022]
[1759721482504,77.691171,4534.8,4534.7,54.88655022]
[1759721483214,77.691171,4534.8,4534.7,56.63819984]
[1759721483882,77.691171,4534.8,4534.7,56.74859984]
[1759721484095,78.921171,4534.8,4534.7,56.74859984]
[1759721485611,80.151171,4534.8,4534.7,56.74859984]
[1759721487011,81.348181,4534.8,4534.7,56.74859984]
[1759721487642,81.315192,4534.8,4534.7,56.51004405]
[1759721488137,81.282203,4534.8,4534.7,56.51004405]
[1759721488307,82.512203,4534.8,4534.7,56.51004405]
[1759721488709,82.479214,4534.8,4534.7,56.51004405]
[1759721489228,82.446225,4534.8,4534.7,56.51004405]
[1759721489737,83.643236,4534.8,4534.7,56.51004405]
[1759721491004,84.873236,4534.8,4534.7,56.51004405]
[1759721491427,84.873236,4534.8,4534.7,56.50904405]
[1759721492611,86.103236,4534.8,4534.7,56.50904405]
[1759721494004,87.312217,4534.8,4534.7,56.50904405]
[1759721494914,87.312217,4534.8,4534.7,48.31127689]
[1759721495113,87.762817,4534.8,4534.7,55.29549443]
[1759721495340,88.992817,4534.8,4534.7,55.29549443]
[1759721496704,90.222817,4534.8,4534.7,55.29549443]
[1759721498946,90.222817,4534.8,4534.7,50.80027689]
[1759721498947,91.452817,4534.8,4534.7,50.80027689]
[1759721499714,91.452817,4534.8,4534.7,53.00549443]
[1759721500111,91.454817,4534.8,4534.7,53.00549443]
[1759721500439,92.684817,4534.8,4534.7,53.00549443]
[1759721501610,93.914817,4534.8,4534.7,53.00549443]
[1759721502939,95.144817,4534.8,4534.7,53.00549443]
[1759721503956,95.144817,4534.8,4534.7,47.67767689]
[1759721504126,95.144817,4534.8,4534.7,50.16667689]
[1759721504320,96.374817,4534.8,4534.7,50.80027689]
[1759721505913,97.604817,4534.8,4534.7,50.80027689]
[1759721507515,98.834817,4534.8,4534.7,50.80027689]
[1759721509248,100.064817,4534.8,4534.7,50.80027689]
[1759721509631,100.064817,4534.8,4534.7,57.95027689]
[1759721509951,100.064817,4534.8,4534.7,50.80027689]
[1759721510149,100.064817,4534.8,4534.7,20.80027689]
[1759721510340,100.064817,4534.8,4534.7,50.80027689]
[1759721510649,101.294817,4534.8,4534.7,50.80027689]
[1759721511923,102.524817,4534.8,4534.7,50.80027689]
[1759721513256,102.524817,4534.8,4534.7,20.80027689]
[1759721513451,103.754817,4534.8,4534.7,50.80027689]
[1759721514854,104.984817,4534.8,4534.7,50.80027689]
[1759721516267,106.214817,4534.8,4534.7,50.80027689]
[1759721517567,107.444817,4534.8,4534.7,50.80027689]
[1759721517993,107.444817,4534.8,4534.7,30.36916089]
[1759721518215,107.444817,4534.8,4534.7,25.74486589]
[1759721518485,107.444817,4534.8,4534.7,27.31596589]
[1759721518687,107.444817,4534.8,4534.7,25.78648189]
[1759721518992,108.674817,4534.8,4534.7,25.78648189]
[1759721519487,108.674817,4534.8,4534.7,20.16667689]
[1759721519649,108.674817,4534.8,4534.7,27.37098289]
[1759721520180,109.904817,4534.8,4534.7,27.37098289]
[1759721520348,109.454217,4534.8,4534.7,28.44058289]
[1759721520687,109.454217,4534.8,4534.7,51.23627689]
[1759721520854,109.454217,4534.8,4534.7,50.80027689]
[1759721521693,110.684217,4534.8,4534.7,50.80027689]
[1759721523606,111.914217,4534.8,4534.7,20.80027689]
[1759721523810,111.914217,4534.8,4534.7,50.80027689]
[1759721524610,111.914217,4534.8,4534.7,20.80027689]
[1759721524830,113.144217,4534.8,4534.7,50.80027689]
[1759721525739,113.144217,4534.8,4534.7,60.61669443]
[1759721526226,114.374217,4534.8,4534.7,60.61669443]
[1759721526778,114.374217,4534.8,4534.7,54.91685022]
[1759721526779,69.62667024,4534.8,4534.7,54.91685022]
[1759721527084,68.43724571,4534.8,4534.7,55.02725022]
[1759721527510,69.0063858,4534.8,4534.7,55.02725022]
[1759721527701,69.0063858,4534.8,4534.7,56.78454463]
[1759721528010,68.34552589,4534.8,4534.7,56.78454463]
[1759721528916,68.91494683,4534.8,4534.7,55.02725022]
[1759721529424,68.25436777,4534.8,4534.7,55.02725022]
[1759721530224,69.48436777,4534.8,4534.7,55.02725022]
[1759721530429,69.48436777,4534.8,4534.7,49.63327689]
[1759721530628,69.48436777,4534.8,4534.7,58.52880874]
[1759721530932,69.48436777,4534.8,4534.7,51.3963912]
[1759721531102,69.48436777,4534.8,4534.7,58.95080874]
[1759721531297,69.48436777,4534.8,4534.7,59.58440874]
[1759721531494,70.71436777,4534.8,4534.7,55.64529443]
[1759721532330,70.71436777,4534.8,4534.7,62.79529443]
[1759721532917,71.94436777,4534.8,4534.7,62.79529443]
[1759721534326,71.94436777,4534.8,4534.7,62.33409443]
[1759721534526,73.17436777,4534.8,4534.7,63.27231106]
[1759721534732,73.17436777,4534.8,4534.7,64.59431106]
[1759721534733,9.98672393,4534.8,4534.7,64.59431106]
[1759721535025,9.45821847,4534.8,4534.7,34.83168105]
[1759721535226,9.45821847,4534.8,4534.7,64.83168105]
[1759721535433,9.45821847,4534.8,4534.7,57.68168105]
[1759721535796,4.261331,4535.2,4535.1,4.38102304]
[1759721536031,4.261331,4535.2,4535.1,11.72663967]
[1759721536206,4.261331,4535.2,4535.1,42.18783967]
[1759721536401,4.261331,4535.2,4535.1,56.68783967]
[1759721537056,3.60066175,4535.2,4535.1,56.68783967]
[1759721537353,4.83066175,4535.2,4535.1,57.7952789]
[1759721537562,4.1699925,4535.2,4535.1,61.73212993]
[1759721537930,3.50932325,4535.2,4535.1,61.73212993]
[1759721538330,2.848654,4535.2,4535.1,61.73212993]
[1759721538961,4.078654,4535.2,4535.1,61.73212993]
[1759721539345,4.078654,4535.2,4535.1,61.52305965]
[1759721540679,5.308654,4535.2,4535.1,61.52305965]
[1759721540963,5.308654,4535.2,4535.1,57.43999199]
[1759721541136,5.308654,4535.2,4535.1,27.43999199]
[1759721541332,5.308654,4535.2,4535.1,57.43999199]
[1759721541741,4.64813312,4535.2,4535.1,57.43999199]
[1759721542067,5.85125112,4535.2,4535.1,57.45923863]
[1759721543436,7.08125112,4535.2,4535.1,57.45923863]
[1759721543746,34.34130443,4535.3,4535.2,6.56057442]
[1759721543945,34.34130443,4535.3,4535.2,25.13443142]
[1759721544142,34.34130443,4535.3,4535.2,25.59563142]
[1759721544343,34.34130443,4535.3,4535.2,26.25663038]
[1759721544556,34.34130443,4535.3,4535.2,40.75663038]
[1759721544774,35.57130443,4535.3,4535.2,40.75663038]
[1759721546886,36.80130443,4535.3,4535.2,40.75663038]
[1759721547455,29.65130443,4535.3,4535.2,42.58543038]
[1759721547870,29.65130443,4535.3,4535.2,49.73543038]
[1759721548255,30.88130443,4535.3,4535.2,49.73543038]
[1759721548585,30.88130443,4535.3,4535.2,43.04663038]
[1759721549299,30.88130443,4535.3,4535.2,43.26703038]
[1759721549500,24.58845265,4535.3,4535.2,43.17284701]
[1759721549673,24.58845265,4535.3,4535.2,43.63404701]
[1759721550061,24.58845265,4535.3,4535.2,43.37743038]
[1759721550261,24.58845265,4535.3,4535.2,22.05237338]
[1759721550461,24.58845265,4535.3,4535.2,42.91523038]
[1759721550904,25.82045265,4535.3,4535.2,42.91523038]
[1759721551862,25.82045265,4535.3,4535.2,43.37643038]
[1759721552339,27.05045265,4535.3,4535.2,43.37643038]
[1759721553433,27.05045265,4535.3,4535.2,42.91523038]
[1759721553599,28.28045265,4535.3,4535.2,42.91523038]
[1759721553798,28.28045265,4535.3,4535.2,46.85208141]
[1759721554905,29.51045265,4535.3,4535.2,46.85208141]
[1759721555438,29.51045265,4535.3,4535.2,41.85468141]
[1759721555637,29.97035265,4535.3,4535.2,46.63068141]
[1759721556352,31.20035265,4535.3,4535.2,42.69383038]
[1759721557756,32.43035265,4535.3,4535.2,42.69383038]
[1759721558057,31.97045265,4535.3,4535.2,42.69383038]
[1759721558257,32.43035265,4535.3,4535.2,40.48885596]
[1759721558460,32.43035265,4535.3,4535.2,42.69383038]
[1759721558647,32.43035265,4535.3,4535.2,33.75725596]
[1759721558846,32.43035265,4535.3,4535.2,40.73823038]
[1759721559053,33.66035265,4535.3,4535.2,41.37183038]
[1759721559254,33.66035265,4535.3,4535.2,41.59213038]
[1759721560430,34.89035265,4535.3,4535.2,25.50627338]
[1759721560757,34.89035265,4535.3,4535.2,41.59213038]
[1759721561972,36.12035265,4535.3,4535.2,41.59213038]
[1759721562167,36.12035265,4535.3,4535.2,34.39085596]
[1759721562464,36.12035265,4535.3,4535.2,34.47785596]
[1759721562767,36.12035265,4535.3,4535.2,31.35725596]
[1759721562968,36.12035265,4535.3,4535.2,33.84425596]
[1759721563301,39.06410984,4535.3,4535.2,21.348757]
[1759721563581,39.06410984,4535.3,4535.2,0.1104]
[1759721563782,39.06410984,4535.3,4535.2,7.636509]
[1759721564248,39.06410984,4535.3,4535.2,5.320439]
[1759721564450,40.29410984,4535.3,4535.2,19.820439]
[1759721564674,40.29410984,4535.3,4535.2,22.307439]
[1759721564876,40.29410984,4535.3,4535.2,19.907439]
[1759721565872,43.72903564,4535.3,4535.2,19.4974]
[1759721566080,43.72903564,4535.3,4535.2,19.387]
[1759721566490,43.72903564,4535.3,4535.2,4.887]
[1759721567258,44.95903564,4535.3,4535.2,4.887]
[1759721568578,46.18903564,4535.3,4535.2,4.887]
[1759721569884,47.41903564,4535.3,4535.2,4.887]
[1759721570582,45.21410984,4535.3,4535.2,4.887]
[1759721570892,47.41903564,4535.3,4535.2,4.887]
[1759721571265,48.64903564,4535.3,4535.2,4.887]
[1759721572765,47.67410984,4535.3,4535.2,4.887]
[1759721572947,49.87903564,4535.3,4535.2,4.887]
[1759721573280,47.67410984,4535.3,4535.2,4.887]
[1759721573681,49.87903564,4535.3,4535.2,4.887]
[1759721574251,51.10903564,4535.3,4535.2,4.887]
[1759721575146,51.10903564,4535.3,4535.2,34.887]
[1759721575582,52.33903564,4535.3,4535.2,34.887]
[1759721576955,53.56903564,4535.3,4535.2,34.887]
[1759721578297,54.79903564,4535.3,4535.2,34.887]
[1759721579590,56.02903564,4535.3,4535.2,34.887]
[1759721580211,53.82410984,4535.3,4535.2,34.887]
[1759721580382,48.90237257,4535.3,4535.2,34.9974]
[1759721580585,46.34336444,4535.3,4535.2,35.25401663]
[1759721580903,46.34336444,4535.3,4535.2,34.9974]
[1759721581070,47.57336444,4535.3,4535.2,34.9974]
[1759721581902,48.03326444,4535.3,4535.2,34.9984]
[1759721582201,47.57336444,4535.3,4535.2,49.4984]
[1759721582569,48.80336444,4535.3,4535.2,49.4984]
[1759721583774,50.03336444,4535.3,4535.2,49.4984]
[1759721585191,51.26336444,4535.3,4535.2,49.4984]
[1759721586624,52.49336444,4535.3,4535.2,49.4984]
[1759721587914,52.49336444,4535.3,4535.2,50.20641663]
[1759721587915,51.32714721,4535.3,4535.2,50.20641663]
[1759721589205,51.32714721,4535.3,4535.2,49.9498]
[1759721589417,52.55714721,4535.3,4535.2,49.9498]
[1759721590798,53.78714721,4535.3,4535.2,49.9498]